[Event "17th Memorial Lezcano Montalvo 2025"]
[Site "Gran Canaria"]
[Date "2025.04.15"]
[Round "4.51"]
[White "Juan Miguel, Javier"]
[Black "Gavilan Ledezma, Kevin"]
[Result "1-0"]
[Annotator "NA RC"]
[ECO "A40"]
[WhiteElo "1803"]
[BlackElo "1548"]
[PlyCount "111"]
[EventDate "2025.04.13"]
[EventType "swiss"]
[EventCountry "ESP"]
[SourceTitle "playchess.com"]
[Source "ChessBase"]
[SourceQuality "1"]
[TimeControl "5400+30"]

1. d4 {[%emt 0:00:09]} g6 {[%emt 0:00:33]} 2. Nf3 {[%emt 0:00:32]} Bg7 {[%emt 0:00:09]} 3. e3 {[%emt 0:00:16]} e6 {[%emt 0:01:06]} 4. Bd3 {[%emt 0:00:38]} Nf6 {[%emt 0:00:57]} 5. b3 {[%emt 0:00:35]} b6 {[%emt 0:00:08]} 6. Bb2 {[%emt 0:00:32]} Bb7 {[%emt 0:00:08]} 7. Nbd2 {[%emt 0:00:31]} d5 {[%emt 0:00:46]} 8. c4 {[%emt 0:01:27]} Nbd7 {[%emt 0:02:31]} 9. Rc1 {[%emt 0:03:03]} c6 {[%emt 0:05:03]} 10. Ne5 {[%emt 0:03:00]} Nxe5 {[%emt 0:03:33]} 11. dxe5 {[%emt 0:00:11]} Nd7 {[%emt 0:00:15]} 12. f4 {[%emt 0:00:22]} Qh4+ {[%emt 0:09:18]} 13. g3 {[%emt 0:01:25]} Qe7 {[%emt 0:00:06]} 14. e4 {[%emt 0:04:11]} Nc5 {[%emt 0:02:51]} 15. Bb1 {[%emt 0:02:35]} Rd8 {[%emt 0:01:00]} 16. Qe2 {[%emt 0:02:44]} dxc4 {[%emt 0:00:58]} 17. Nxc4 {[%emt 0:01:41]} Ba6 {[%emt 0:00:37]} 18. Ba3 {[%emt 0:03:33]} Bxc4 {[%emt 0:02:47]} 19. Bxc5 {[%emt 0:05:03]} Qxc5 {[%emt 0:02:48]} 20. Rxc4 {[%emt 0:00:13]} Qa5+ {[%emt 0:00:48]} 21. b4 {[%emt 0:00:27]} Qa4 {[%emt 0:00:17]} 22. Qc2 {[%emt 0:02:13]} Qxc2 {[%emt 0:00:51]} 23. Bxc2 {[%emt 0:00:09]} Bf8 {[%emt 0:00:05]} 24. a3 {[%emt 0:02:49]} c5 {[%emt 0:00:07]} 25. Ba4+ {[%emt 0:00:53]} Ke7 {[%emt 0:02:40]} 26. bxc5 {[%emt 0:00:20]} bxc5 {[%emt 0:00:50]} 27. Rxc5 {[%emt 0:00:06]} Rd3 {[%emt 0:01:30]} 28. O-O {[%emt 0:02:36]} Kd8 {[%emt 0:01:54]} 29. Rc4 {[%emt 0:00:47]} Bxa3 {[%emt 0:00:51]} 30. Rb1 {[%emt 0:00:10]} Ke7 {[%emt 0:01:33]} 31. Rb7+ {[%emt 0:00:19]} Kf8 {[%emt 0:00:02]} 32. Rcc7 {[%emt 0:00:30]} Kg7 {[%emt 0:03:17]} 33. Rxf7+ {[%emt 0:00:09]} Kh6 {[%emt 0:00:06]} 34. f5 {[%emt 0:00:34]} exf5 {[%emt 0:00:17]} 35. exf5 {[%emt 0:00:08]} Bc5+ {[%emt 0:00:05]} 36. Kg2 {[%emt 0:00:18]} Rd2+ {[%emt 0:01:19]} 37. Kh3 {[%emt 0:00:05]} Bg1 {[%emt 0:56:54]} 38. e6 {[%emt 0:04:40]} Rxh2+ {[%emt 0:00:00]} 39. Kg4 {[%emt 0:00:16]} gxf5+ {[%emt 0:00:00]} 40. Rxf5 {[%emt 0:04:18]} Rg8+ {[%emt 0:00:00]} 41. Kf4 {[%emt 0:00:10]} Rf2+ {[%emt 0:00:00]} 42. Ke5 {[%emt 0:00:41]} Re2+ {[%emt 0:00:00]} 43. Kd6 {[%emt 0:56:41]} Rd2+ {[%emt 0:00:00]} 44. Rd5 {[%emt 0:00:00]} Rd8+ {[%emt 0:00:00]} 45. Bd7 {[%emt 0:00:00]} Re2 {[%emt 0:00:00]} 46. e7 {[%emt 0:00:00]} Rg8 {[%emt 0:00:00]} 47. Re5 {[%emt 0:00:00]} Rg6+ {[%emt 0:00:00]} 48. Re6 {[%emt 0:00:00]} Rgxe6+ {[%emt 0:00:00]} 49. Bxe6 {[%emt 0:00:00]} Bc5+ {[%emt 0:00:00]} 50. Kxc5 {[%emt 0:00:00]} Rxe6 {[%emt 0:00:00]} 51. Kd5 {[%emt 0:00:00]} Re1 {[%emt 0:00:00]} 52. Kd6 {[%emt 0:00:00]} Kg6 {[%emt 0:00:00]} 53. Kd7 {[%emt 0:00:00]} Kf7 {[%emt 0:00:00]} 54. Kd8 {[%emt 0:00:00]} Rd1+ {[%emt 0:00:00]} 55. Rd7 {[%emt 0:00:00]} Rxd7+ {[%emt 0:00:00]} 56. Kxd7 {[%emt 0:00:00]} 1-0

[Event "17th Memorial Lezcano Montalvo 2025"]
[Site "Gran Canaria"]
[Date "2025.04.15"]
[Round "4.52"]
[White "Reinoso Andre, Lazaro Javier"]
[Black "Leandro Tejera, Damian"]
[Result "1-0"]
[Annotator "NA RC"]
[ECO "A84"]
[WhiteElo "1796"]
[BlackElo "1546"]
[PlyCount "79"]
[EventDate "2025.04.13"]
[EventType "swiss"]
[EventCountry "ESP"]
[SourceTitle "playchess.com"]
[Source "ChessBase"]
[SourceQuality "1"]
[TimeControl "5400+30"]

1. d4 {[%emt 0:00:13]} f5 {[%emt 0:06:45]} 2. Nf3 {[%emt 0:00:32]} e6 {[%emt 0:00:35]} 3. e3 {[%emt 0:00:29]} Nf6 {[%emt 0:00:00]} 4. Bd3 {[%emt 0:00:11]} d5 {[%emt 0:00:00]} 5. c4 {[%emt 0:00:35]} c6 {[%emt 0:00:09]} 6. O-O {[%emt 0:00:16]} Bd6 {[%emt 0:00:18]} 7. c5 {[%emt 0:00:11]} Bc7 {[%emt 0:00:10]} 8. b4 {[%emt 0:00:04]} O-O {[%emt 0:00:41]} 9. Qb3 {[%emt 0:00:38]} b6 {[%emt 0:01:46]} 10. a4 {[%emt 0:01:40]} bxc5 {[%emt 0:01:52]} 11. dxc5 {[%emt 0:00:26]} e5 {[%emt 0:03:36]} 12. Bc2 {[%emt 0:01:37]} h6 {[%emt 0:01:59]} 13. Bb2 {[%emt 0:00:50]} Re8 {[%emt 0:03:11]} 14. Rd1 {[%emt 0:00:59]} Qe7 {[%emt 0:01:14]} 15. Nh4 {[%emt 0:00:58]} e4 {[%emt 0:05:08]} 16. Bd4 {[%emt 0:00:50]} Ng4 {[%emt 0:04:54]} 17. g3 {[%emt 0:04:12]} Nxh2 {[%emt 0:02:15]} 18. b5 {[%emt 0:00:24]} Nf3+ {[%emt 0:00:59]} 19. Nxf3 {[%emt 0:00:25]} exf3 {[%emt 0:00:06]} 20. Nd2 {[%emt 0:00:42]} Be6 {[%emt 0:12:10]} 21. Nxf3 {[%emt 0:00:23]} Nd7 {[%emt 0:00:39]} 22. bxc6 {[%emt 0:00:38]} Nxc5 {[%emt 0:00:26]} 23. Qc3 {[%emt 0:00:43]} Ne4 {[%emt 0:01:22]} 24. Bxe4 {[%emt 0:04:02]} fxe4 {[%emt 0:01:49]} 25. Ne5 {[%emt 0:00:52]} Bxe5 {[%emt 0:00:57]} 26. Bxe5 {[%emt 0:00:02]} Bg4 {[%emt 0:00:11]} 27. Rxd5 {[%emt 0:00:11]} Bf3 {[%emt 0:02:07]} 28. Bf4 {[%emt 0:01:18]} Rac8 {[%emt 0:02:00]} 29. Rd7 {[%emt 0:00:55]} Qf6 {[%emt 0:01:22]} 30. Qxf6 {[%emt 0:00:37]} gxf6 {[%emt 0:00:00]} 31. c7 {[%emt 0:00:23]} Bg4 {[%emt 0:01:22]} 32. Rd5 {[%emt 0:00:46]} Kf7 {[%emt 0:00:16]} 33. Ra5 {[%emt 0:00:22]} Ra8 {[%emt 0:02:03]} 34. Rb1 {[%emt 0:00:09]} Bc8 {[%emt 0:01:14]} 35. Rb8 {[%emt 0:00:11]} Bg4 {[%emt 0:01:24]} 36. Rb7 {[%emt 0:00:25]} a6 {[%emt 0:00:00]} 37. c8=Q+ {[%emt 1:20:51]} Kf8 {[%emt 0:01:40]} 38. Qxg4 {[%emt 0:00:00]} Red8 {[%emt 0:00:00]} 39. Qg7+ {[%emt 0:00:00]} Ke8 {[%emt 0:00:00]} 40. Qe7# {[%emt 0:00:00]} 1-0

[Event "17th Memorial Lezcano Montalvo 2025"]
[Site "Gran Canaria"]
[Date "2025.04.15"]
[Round "4.53"]
[White "Bernal Zelaya, Pedro Gabriel"]
[Black "Basualdo De Ornelas, Jorge"]
[Result "0-1"]
[Annotator "NA RC"]
[ECO "C54"]
[WhiteElo "1538"]
[BlackElo "1794"]
[PlyCount "47"]
[EventDate "2025.04.13"]
[EventType "swiss"]
[EventCountry "ESP"]
[SourceTitle "playchess.com"]
[Source "ChessBase"]
[SourceQuality "1"]
[TimeControl "5400+30"]

1. e4 {[%emt 0:00:04]} e5 {[%emt 0:00:02]} 2. Nf3 {[%emt 0:00:10]} Nc6 {[%emt 0:00:03]} 3. Bc4 {[%emt 0:00:14]} Bc5 {[%emt 0:00:11]} 4. c3 {[%emt 0:00:20]} Nf6 {[%emt 0:00:05]} 5. d3 {[%emt 0:00:12]} d6 {[%emt 0:00:19]} 6. Nbd2 {[%emt 0:00:27]} O-O {[%emt 0:02:12]} 7. O-O {[%emt 0:02:05]} a5 {[%emt 0:00:04]} 8. a4 {[%emt 0:00:36]} Ba7 {[%emt 0:01:36]} 9. h3 {[%emt 0:00:43]} Be6 {[%emt 0:00:15]} 10. Bxe6 {[%emt 0:00:34]} fxe6 {[%emt 0:00:05]} 11. Qb3 {[%emt 0:00:13]} Qd7 {[%emt 0:00:38]} 12. Nc4 {[%emt 0:03:37]} h6 {[%emt 0:03:44]} 13. Re1 {[%emt 0:02:34]} Nh5 {[%emt 0:14:08]} 14. Be3 {[%emt 0:02:56]} Nf4 {[%emt 0:03:06]} 15. Bxa7 {[%emt 0:06:44]} Rxa7 {[%emt 0:00:28]} 16. Rad1 {[%emt 0:02:58]} Nxh3+ {[%emt 0:01:48]} 17. gxh3 {[%emt 0:01:53]} Rxf3 {[%emt 0:00:11]} 18. Kg2 {[%emt 0:00:03]} Qf7 {[%emt 0:03:13]} 19. Rd2 {[%emt 0:00:23]} Qh5 {[%emt 0:11:28]} 20. Re3 {[%emt 0:01:47]} Qxh3+ {[%emt 0:01:19]} 21. Kg1 {[%emt 0:00:08]} Qg4+ {[%emt 0:07:56]} 22. Kf1 {[%emt 0:00:23]} Rf6 {[%emt 0:01:09]} 23. Rg3 {[%emt 0:01:36]} Qxg3 {[%emt 0:00:39]} 24. Ke2 {[%emt 1:11:50]} 0-1

[Event "17th Memorial Lezcano Montalvo 2025"]
[Site "Gran Canaria"]
[Date "2025.04.15"]
[Round "4.54"]
[White "Sanchez Ramirez, Gustavo"]
[Black "Santana Slamova, Yassine"]
[Result "1-0"]
[Annotator "NA RC"]
[ECO "A20"]
[WhiteElo "1780"]
[BlackElo "1515"]
[PlyCount "84"]
[EventDate "2025.04.13"]
[EventType "swiss"]
[EventCountry "ESP"]
[SourceTitle "playchess.com"]
[Source "ChessBase"]
[SourceQuality "1"]
[TimeControl "5400+30"]

1. d3 {[%emt 0:00:23]} Nf6 {[%emt 0:01:07]} 2. c4 {[%emt 0:00:15]} e5 {[%emt 0:00:00]} 3. g3 {[%emt 0:00:33]} Nc6 {[%emt 0:00:10]} 4. Bg2 {[%emt 0:00:41]} Bb4+ {[%emt 0:00:18]} 5. Bd2 {[%emt 0:00:58]} Bxd2+ {[%emt 0:00:20]} 6. Qxd2 {[%emt 0:00:36]} d5 {[%emt 0:00:22]} 7. cxd5 {[%emt 0:00:46]} Nxd5 {[%emt 0:00:11]} 8. Nc3 {[%emt 0:00:31]} Be6 {[%emt 0:00:35]} 9. Nf3 {[%emt 0:01:22]} Qd7 {[%emt 0:01:01]} 10. Ng5 {[%emt 0:03:14]} Nde7 {[%emt 0:04:47]} 11. Nxe6 {[%emt 0:03:19]} Qxe6 {[%emt 0:00:11]} 12. O-O {[%emt 0:00:20]} h5 {[%emt 0:01:36]} 13. Rac1 {[%emt 0:06:52]} h4 {[%emt 0:05:27]} 14. Nb5 {[%emt 0:06:48]} O-O-O {[%emt 0:02:04]} 15. b4 {[%emt 0:01:18]} a6 {[%emt 0:02:16]} 16. Na3 {[%emt 0:03:50]} hxg3 {[%emt 0:05:47]} 17. fxg3 {[%emt 0:00:32]} Qg4 {[%emt 0:06:19]} 18. Rc4 {[%emt 0:02:40]} Rd4 {[%emt 0:08:17]} 19. Rxf7 {[%emt 0:11:03]} Qh5 {[%emt 0:01:56]} 20. Rxd4 {[%emt 0:04:12]} Qxh2+ {[%emt 0:03:26]} 21. Kf2 {[%emt 0:00:12]} exd4 {[%emt 0:01:48]} 22. Qf4 {[%emt 0:01:03]} Qh6 {[%emt 0:07:54]} 23. b5 {[%emt 0:04:54]} axb5 {[%emt 0:02:26]} 24. Nxb5 {[%emt 0:00:35]} Qxf4+ {[%emt 0:02:12]} 25. Rxf4 {[%emt 0:04:25]} Ng6 {[%emt 0:04:38]} 26. Rg4 {[%emt 0:01:49]} Rf8+ {[%emt 0:02:00]} 27. Ke1 {[%emt 0:00:32]} Nb4 {[%emt 0:06:01]} 28. Rxg6 {[%emt 0:01:30]} Nc2+ {[%emt 0:02:26]} 29. Kd2 {[%emt 0:00:35]} Ne3 {[%emt 0:00:32]} 30. Bf3 {[%emt 0:00:40]} Nf1+ {[%emt 0:29:23]} 31. Ke1 {[%emt 0:39:32]} Ne3 {[%emt 0:00:30]} 32. Nxd4 {[%emt 0:00:30]} Rd8 {[%emt 0:00:30]} 33. Ne6 {[%emt 0:00:30]} Rd6 {[%emt 0:00:30]} 34. Kf2 {[%emt 0:00:30]} Nd1+ {[%emt 0:00:30]} 35. Kg1 {[%emt 0:00:30]} Ra6 {[%emt 0:00:30]} 36. Rxg7 {[%emt 0:00:30]} Ra4 {[%emt 0:00:30]} 37. a3 Rxa3 38. Rxc7+ {[%emt 0:01:00]} Kb8 39. Rxb7+ {[%emt 0:00:30]} Kc8 40. Rc7+ {[%emt 0:00:30]} Kb8 41. g4 {[%emt 0:00:30]} Ra6 {[%emt 0:02:30]} 42. Be4 {[%emt 0:00:30]} Rd6 {[%emt 0:00:30]} 1-0

[Event "17th Memorial Lezcano Montalvo 2025"]
[Site "Gran Canaria"]
[Date "2025.04.15"]
[Round "4.55"]
[White "Martin Gonzalez, Lucas"]
[Black "Velasquez Vargas, Sebastian"]
[Result "0-1"]
[Annotator "NA RC"]
[ECO "C45"]
[WhiteElo "1547"]
[BlackElo "1777"]
[PlyCount "102"]
[EventDate "2025.04.13"]
[EventType "swiss"]
[EventCountry "ESP"]
[SourceTitle "playchess.com"]
[Source "ChessBase"]
[SourceQuality "1"]
[TimeControl "5400+30"]

1. e4 {[%emt 0:00:05]} e5 {[%emt 0:00:25]} 2. Nf3 {[%emt 0:00:26]} Nc6 {[%emt 0:00:08]} 3. d4 {[%emt 0:00:32]} exd4 {[%emt 0:00:11]} 4. Nxd4 {[%emt 0:00:42]} Nf6 {[%emt 0:00:14]} 5. Nxc6 {[%emt 0:02:29]} bxc6 {[%emt 0:00:32]} 6. Bd3 {[%emt 0:01:32]} d5 {[%emt 0:00:35]} 7. exd5 {[%emt 0:01:43]} cxd5 {[%emt 0:01:04]} 8. O-O {[%emt 0:01:05]} Be7 {[%emt 0:01:22]} 9. Bf4 {[%emt 0:00:59]} O-O {[%emt 0:01:41]} 10. Nd2 {[%emt 0:05:06]} Bd6 {[%emt 0:03:33]} 11. Bxd6 {[%emt 0:14:42]} Qxd6 {[%emt 0:00:12]} 12. h3 {[%emt 0:02:09]} Re8 {[%emt 0:01:51]} 13. Qf3 {[%emt 0:08:10]} c5 {[%emt 0:06:55]} 14. Rfe1 {[%emt 0:04:48]} Be6 {[%emt 0:02:31]} 15. Bf5 {[%emt 0:05:15]} Rab8 {[%emt 0:07:40]} 16. b3 {[%emt 0:06:57]} Qd7 {[%emt 0:01:37]} 17. Bxe6 {[%emt 0:06:38]} Rxe6 {[%emt 0:00:09]} 18. c4 {[%emt 0:02:35]} d4 {[%emt 0:01:19]} 19. Ne4 {[%emt 0:01:32]} Nxe4 {[%emt 0:02:40]} 20. Rxe4 {[%emt 0:00:34]} Rxe4 {[%emt 0:01:12]} 21. Qxe4 {[%emt 0:00:22]} Qe6 {[%emt 0:01:40]} 22. Re1 {[%emt 0:33:09]} Re8 {[%emt 0:01:12]} 23. Qxe6 {[%emt 0:00:00]} Rxe6 {[%emt 0:00:08]} 24. Rxe6 {[%emt 0:00:00]} fxe6 {[%emt 0:00:07]} 25. Kf1 {[%emt 0:00:00]} e5 {[%emt 0:00:29]} 26. f3 {[%emt 0:00:00]} Kf7 {[%emt 0:01:23]} 27. Ke2 {[%emt 0:00:00]} Kf6 {[%emt 0:02:11]} 28. Kd3 {[%emt 0:00:00]} a5 {[%emt 0:00:35]} 29. a3 {[%emt 0:00:00]} Kf5 {[%emt 0:07:19]} 30. g3 {[%emt 0:00:00]} h5 {[%emt 0:06:52]} 31. h4 {[%emt 0:00:00]} g6 {[%emt 0:01:16]} 32. g4+ {[%emt 0:00:00]} hxg4 {[%emt 0:01:07]} 33. fxg4+ {[%emt 0:00:00]} Kxg4 {[%emt 0:00:05]} 34. b4 {[%emt 0:00:00]} cxb4 {[%emt 0:00:11]} 35. axb4 {[%emt 0:00:00]} axb4 {[%emt 0:00:05]} 36. c5 {[%emt 0:00:00]} Kf5 {[%emt 0:00:08]} 37. Kc4 {[%emt 0:00:00]} e4 {[%emt 0:00:51]} 38. Kxd4 {[%emt 0:00:00]} b3 {[%emt 0:00:22]} 39. Kc3 {[%emt 0:00:00]} e3 {[%emt 0:00:08]} 40. Kxb3 {[%emt 0:00:00]} e2 {[%emt 0:00:05]} 41. Kc4 {[%emt 0:00:00]} e1=Q {[%emt 0:00:10]} 42. Kd5 {[%emt 0:00:00]} Qxh4 {[%emt 0:00:22]} 43. Kd6 {[%emt 0:00:00]} Qd8+ {[%emt 0:00:28]} 44. Kc6 {[%emt 0:00:00]} Qc8+ {[%emt 0:00:05]} 45. Kd6 {[%emt 0:00:00]} g5 {[%emt 0:00:06]} 46. c6 {[%emt 0:00:00]} g4 {[%emt 0:00:05]} 47. c7 {[%emt 0:00:00]} g3 {[%emt 0:00:03]} 48. Kc6 {[%emt 0:00:00]} g2 {[%emt 0:00:08]} 49. Kd6 {[%emt 0:00:00]} g1=Q {[%emt 0:00:11]} 50. Kc6 {[%emt 0:00:00]} Qc1+ {[%emt 0:00:08]} 51. Kd5 {[%emt 0:00:00]} Qd7# {[%emt 0:00:08]} 0-1

[Event "17th Memorial Lezcano Montalvo 2025"]
[Site "Gran Canaria"]
[Date "2025.04.15"]
[Round "4.56"]
[White "Rossello Padron, Carlos"]
[Black "Rodriguez Morales, Jimena"]
[Result "1-0"]
[Annotator "NA RC"]
[ECO "A02"]
[WhiteElo "1776"]
[BlackElo "1496"]
[PlyCount "59"]
[EventDate "2025.04.13"]
[EventType "swiss"]
[EventCountry "ESP"]
[SourceTitle "playchess.com"]
[Source "ChessBase"]
[SourceQuality "1"]
[TimeControl "5400+30"]

1. b3 {[%emt 0:00:33]} g6 {[%emt 0:00:18]} 2. Bb2 {[%emt 0:00:15]} Nf6 {[%emt 0:00:45]} 3. e4 {[%emt 0:01:36]} d6 {[%emt 0:01:14]} 4. f4 {[%emt 0:00:41]} Bg7 {[%emt 0:03:15]} 5. Nf3 {[%emt 0:01:08]} O-O {[%emt 0:02:21]} 6. d3 {[%emt 0:00:40]} Nc6 {[%emt 0:01:35]} 7. Nbd2 {[%emt 0:01:21]} a6 {[%emt 0:01:19]} 8. g3 {[%emt 0:02:53]} Re8 {[%emt 0:02:02]} 9. Bg2 {[%emt 0:01:48]} e5 {[%emt 0:02:11]} 10. fxe5 {[%emt 0:00:12]} dxe5 {[%emt 0:00:07]} 11. O-O {[%emt 0:00:29]} Bd7 {[%emt 0:00:36]} 12. a4 {[%emt 0:03:14]} Nh5 {[%emt 0:04:56]} 13. Nc4 {[%emt 0:04:53]} f6 {[%emt 0:04:46]} 14. Ne3 {[%emt 0:02:06]} Be6 {[%emt 0:04:11]} 15. d4 {[%emt 0:04:40]} exd4 {[%emt 0:02:43]} 16. Nxd4 {[%emt 0:00:23]} Nxd4 {[%emt 0:00:19]} 17. Bxd4 {[%emt 0:00:19]} Qc8 {[%emt 0:00:15]} 18. g4 {[%emt 0:00:30]} c5 {[%emt 0:03:13]} 19. Bb2 {[%emt 0:00:47]} Bh6 {[%emt 0:00:42]} 20. gxh5 {[%emt 0:03:17]} Bxe3+ {[%emt 0:01:01]} 21. Kh1 {[%emt 0:00:16]} Bg4 {[%emt 0:04:05]} 22. Qe1 {[%emt 0:01:45]} Bd4 {[%emt 0:03:53]} 23. Bxd4 {[%emt 0:00:28]} cxd4 {[%emt 0:00:13]} 24. hxg6 {[%emt 0:00:07]} hxg6 {[%emt 0:02:17]} 25. Rxf6 {[%emt 0:01:11]} Kg7 {[%emt 0:00:13]} 26. Qf2 {[%emt 0:02:13]} Qd7 {[%emt 0:02:28]} 27. Rf1 {[%emt 0:00:34]} Re7 {[%emt 0:00:38]} 28. e5 {[%emt 0:04:52]} Be6 {[%emt 0:01:01]} 29. Be4 {[%emt 0:01:51]} Bd5 {[%emt 0:00:57]} 30. Rxg6+ {[%emt 0:00:26]} 1-0